lending/lending_fUSD_20260102
["ID","MTS","AMOUNT","RATE_DAILY","PERIOD"]
[400327981,1767377446193,-150.0,0.00041804,20]
[400327982,1767377446203,-500.0,0.00041804,2]
[400327983,1767377446212,-500.0,0.00041804,2]
[400327984,1767377446222,-500.0,0.00041804,2]
[400327985,1767377446231,-500.0,0.00041804,2]
[400327986,1767377446241,-500.0,0.00041804,30]
[400327987,1767377446250,-500.0,0.00041804,30]
[400327988,1767377446259,-500.0,0.00041804,120]
[400327989,1767377446268,-598.67225404,0.00041804,120]
[400327990,1767377446278,-500.0,0.00041804,120]
[400327991,1767377446287,-500.0,0.00041804,120]
[400327992,1767377446300,-999.0,0.00041804,120]
[400327993,1767377446310,-500.0,0.00041804,120]
[400327994,1767377446320,-500.0,0.00041804,120]
[400327995,1767377446329,-3000.0,0.00041804,2]
[400327996,1767377446339,-500.0,0.00041804,45]
[400327997,1767377446349,-469.72130432,0.00041804,45]
[400327998,1767377446365,-30.27869568,0.00041804,45]
[400327999,1767377446375,-904.12207549,0.00041804,30]
[400328001,1767377446386,-2283.30315864,0.00041804,30]
[400328002,1767377446399,-711.2066756,0.00041804,30]
[400328003,1767377446410,-279.58972968,0.00041804,30]
[400328004,1767377446420,-150.0,0.0004181,120]
[400328005,1767377446430,-200.0,0.00041845,2]
[400328007,1767377446440,-200.0,0.00041845,2]
[400328009,1767377446450,-200.0,0.00041845,2]
[400328010,1767377446459,-200.0,0.00041845,2]
[400328011,1767377446468,-200.0,0.00041845,2]
[400328012,1767377446478,-200.0,0.00041845,2]
[400328013,1767377446487,-200.0,0.00041845,2]
[400328014,1767377446496,-200.0,0.00041845,2]
[400328015,1767377446505,-200.0,0.00041845,2]
[400328016,1767377446515,-123.51756997,0.00041845,2]
[400328017,1767377446567,-76.48243003,0.00041845,2]
[400328018,1767377446576,-200.0,0.00041845,2]
[400328019,1767377446585,-200.0,0.00041845,2]
[400328020,1767377446594,-200.0,0.00041845,2]
[400328021,1767377446603,-117.8223473,0.00041845,2]
[400328022,1767377446614,-82.1776527,0.00041845,2]
[400328023,1767377446624,-200.0,0.00041845,2]
[400328024,1767377446634,-200.0,0.00041845,2]
[400328025,1767377446644,-200.0,0.00041845,2]
[400328026,1767377446653,-200.0,0.00041845,2]
[400328027,1767377446663,-200.0,0.00041845,2]
[400328028,1767377446672,-200.0,0.00041845,2]
[400328029,1767377446682,-200.0,0.00041845,2]
[400328030,1767377446693,-200.0,0.00041845,2]
[400328031,1767377446705,-200.0,0.00041845,2]
[400328032,1767377446715,-200.0,0.00041845,2]
[400328033,1767377446725,-200.0,0.00041845,2]
[400328034,1767377446736,-200.0,0.00041845,2]
[400328035,1767377446747,-200.0,0.00041845,2]
[400328036,1767377446758,-200.0,0.00041845,2]
[400328037,1767377446768,-200.0,0.00041845,2]
[400328038,1767377446778,-200.0,0.00041845,2]
[400328039,1767377446790,-200.0,0.00041845,2]
[400328040,1767377446800,-200.0,0.00041845,2]
[400328041,1767377446810,-200.0,0.00041845,2]
[400328042,1767377446820,-200.0,0.00041845,2]
[400328043,1767377446830,-200.0,0.00041845,2]
[400328044,1767377446840,-200.0,0.00041845,2]
[400328045,1767377446850,-164.0,0.00041845,2]
[400328046,1767377446860,-246.05657203,0.00041845,13]
[400328047,1767377446872,-425.63743765,0.00041845,13]
[400328048,1767377461290,500.0,0.00042926,120]
[400328049,1767377584125,162.67448357,0.00016973,2]
[400328050,1767377618015,151.0,0.00042927,50]
[400328051,1767377618341,151.0,0.00042927,50]
[400328052,1767377618669,151.0,0.00042927,50]
[400328053,1767377618930,151.0,0.00042927,50]
[400328054,1767377619232,151.0,0.00042927,50]
[400328055,1767377619519,151.0,0.00042927,50]
[400328056,1767377619808,151.0,0.00042927,50]
[400328057,1767377620361,151.0,0.00042927,50]
[400328058,1767377620419,151.0,0.00042927,50]
[400328059,1767377620726,151.0,0.00042927,50]
[400328060,1767377621048,151.0,0.00042927,50]
[400328061,1767377624331,300.0,0.00042927,50]
[400328062,1767377644492,-151.0,0.00023629,2]
[400328063,1767377645938,151.0,0.00023573,2]
[400328064,1767377646243,150.0,0.00019178,2]
[400328065,1767377646307,250.0,0.00019726,2]
[400328066,1767377646356,900.0,0.00019726,2]
[400328067,1767377646433,500.42140064,0.00016973,2]
[400328068,1767377646504,500.64229766,0.00016973,2]
[400328069,1767377646530,500.29264717,0.00016973,2]
[400328070,1767377646610,500.0,0.00016973,2]
[400328071,1767377681321,-151.0,0.00024249,2]
[400328073,1767377715241,151.0,0.00042927,50]
[400328074,1767377715452,151.0,0.00042927,50]
[400328075,1767377715755,151.0,0.00042927,50]
[400328076,1767377716065,159.37576,0.00042927,50]
[400328077,1767377762791,500.0,0.00042927,120]
[400328078,1767377779006,151.0,0.00042927,50]
[400328079,1767377779238,151.0,0.00042927,50]
[400328080,1767377779551,151.0,0.00042927,50]
[400328081,1767377779848,151.0,0.00042927,50]
[400328082,1767377780149,151.0,0.00042927,50]
[400328083,1767377780607,151.0,0.00042927,50]
[400328084,1767377780937,151.0,0.00042927,50]
[400328085,1767377781243,151.0,0.00042927,50]
[400328086,1767377781540,151.0,0.00042927,50]
[400328087,1767377781857,151.0,0.00042927,50]
[400328088,1767377782138,201.698147,0.00042927,50]
[400328089,1767377795286,151.0,0.00042927,50]
[400328090,1767377795676,248.858468,0.00042927,50]
[400328091,1767377803244,151.0,0.00042927,50]
[400328092,1767377810250,151.0,0.00042927,50]
[400328093,1767377846544,250.0,0.00017,2]
[400328094,1767377849993,-300.0,0.00019,2]
[400328095,1767377865142,-350.0,0.00021,2]
[400328096,1767377880440,-400.0,0.00023,2]
[400328097,1767377883079,191.91838032,0.00016973,2]
[400328098,1767377972667,-151.0,0.00022526,2]
[400328099,1767377988939,-151.0,0.00022851,2]
[400328100,1767378005397,-151.0,0.00022865,2]
[400328101,1767378012301,211.06729,0.00042925,60]
[400328103,1767378012534,346.08334,0.00042925,60]
[400328104,1767378012778,211.06729,0.00042925,60]
[400328105,1767378012878,346.08334,0.00042925,60]
[400328106,1767378013114,211.06729,0.00042925,60]
[400328107,1767378013206,346.08334,0.00042925,60]
[400328108,1767378013446,211.06729,0.00042925,60]
[400328109,1767378013477,346.08334,0.00042925,60]
[400328110,1767378013733,211.06729,0.00042925,60]
[400328111,1767378013767,346.08334,0.00042925,60]
[400328112,1767378013885,419.29,0.00013699,2]
[400328113,1767378014107,419.29,0.00020187,2]
[400328114,1767378020780,-151.0,0.00022906,2]
[400328115,1767378032744,151.0,0.00022867,2]
[400328116,1767378061174,500.0,0.00042925,120]
[400328117,1767378170947,-151.0,0.00021939,2]
[400328118,1767378204509,-151.0,0.0002239,2]
[400328119,1767378229061,159.94505548,0.00042926,120]
[400328120,1767378238516,-151.0,0.00022377,2]
[400328121,1767378245690,193.0,0.000275,120]
[400328122,1767378245797,193.0,0.00025758,120]
[400328123,1767378245905,213.34739406,0.00026321,120]
[400328124,1767378272593,-151.0,0.00022425,2]
[400328125,1767378289904,151.0,0.00022235,2]
[400328126,1767378308177,500.0,0.00014773,2]
[400328127,1767378308242,500.0,0.00015321,2]
[400328128,1767378310163,500.0,0.00014773,2]
[400328129,1767378310196,202.31335933,0.00015321,2]
[400328131,1767378310661,500.0,0.00014773,2]
[400328132,1767378312826,2646.71566413,0.00042926,60]
[400328133,1767378313331,501.19818357,0.00014773,2]
[400328134,1767378313588,500.0,0.00014773,2]
[400328135,1767378313644,1005.98513581,0.00015321,2]
[400328136,1767378313751,500.0,0.00014773,2]
[400328137,1767378314406,165.58053403,0.00014773,2]
[400328138,1767378316728,500.54833995,0.00014773,2]
[400328139,1767378317275,283.84875685,0.00042926,30]
[400328140,1767378317403,343.36882568,0.00042926,120]
[400328141,1767378319660,501.17933923,0.00014773,2]
[400328142,1767378320329,202.34052992,0.00042926,120]
[400328143,1767378323743,502.0707263,0.00014773,2]
[400328144,1767378324109,501.4324716,0.00014773,2]
[400328145,1767378324425,165.71553697,0.00014773,2]
[400328146,1767378325074,322.75707252,0.00042926,120]
[400328147,1767378325835,500.0,0.00014773,2]
[400328148,1767378325902,1000.0,0.00015321,2]
[400328150,1767378328588,514.32255668,0.00042926,30]
[400328151,1767378329293,501.795798,0.00014773,2]
[400328152,1767378329374,952.19057521,0.00015321,2]
[400328153,1767378329399,47.80942479,0.00015321,2]
[400328154,1767378329431,1500.0,0.00015868,2]
[400328155,1767378329490,1393.71970233,0.00016416,2]
[400328156,1767378329538,500.0,0.00014773,2]
[400328157,1767378331658,500.0,0.00014773,2]
[400328158,1767378331705,1000.0,0.00015321,2]
[400328159,1767378331761,1000.0,0.00015868,2]
[400328162,1767378333665,500.0,0.00014773,2]
[400328163,1767378333697,500.0,0.00015321,2]
[400328164,1767378335412,500.0,0.00016973,2]
[400328165,1767378340492,283.67503359,0.00042926,120]
[400328166,1767378343570,-1000.0,0.00017521,2]
[400328167,1767378345682,266.55264487,0.00042926,120]
[400328168,1767378361305,500.0,0.00042926,120]
[400328169,1767378361571,-1500.0,0.00018068,2]
[400328170,1767378361605,-2000.0,0.00018616,2]
[400328171,1767378361646,-500.01,0.00019164,2]
[400328172,1767378362154,-1999.99,0.00019164,2]
[400328173,1767378362187,-1917.6062809,0.00019712,2]
[400328174,1767378362460,-2112.89395648,0.0001995,15]
[400328175,1767378362498,-4225.78791296,0.0001995,15]
[400328176,1767378363170,-1548.43417408,0.0001995,15]
[400328177,1767378363214,-1530.01840952,0.0002,2]
[400328178,1767378363258,-1019.08383674,0.00024,2]
[400328179,1767378363361,213.19623532,0.00042926,120]
[400328180,1767378363856,500.0,0.00014773,2]
[400328181,1767378363891,1046.45463776,0.00015321,2]
[400328182,1767378365143,258.48252156,0.00014773,2]
[400328183,1767378365167,291.41015858,0.00014773,2]
[400328184,1767378365509,500.00587109,0.00042926,30]
[400328185,1767378366240,4910.5120867,0.000199,3]
[400328186,1767378366485,278.33598828,0.00042926,60]
[400328187,1767378367375,213.79872482,0.00042926,120]
[400328188,1767378367464,500.77579373,0.00014773,2]
[400328189,1767378368181,137960.93042091,0.00042926,30]
[400328190,1767378369906,220.79464457,0.00042926,30]
[400328191,1767378369973,357.06989033,0.00042926,60]
[400328192,1767378370970,197.04109191,0.00042926,120]
[400328193,1767378373090,151.0,0.00022368,2]
[400328194,1767378376106,192.42444052,0.00042926,120]
[400328195,1767378376751,4146.31196099,0.000209,30]
[400328196,1767378376775,744.16879017,0.000209,30]
[400328197,1767378376811,189.94071685,0.00042926,120]
[400328198,1767378377032,160.0,0.00042926,30]
[400328199,1767378377154,160.0,0.00042926,30]
[400328200,1767378377190,160.0,0.00042926,30]
[400328201,1767378377255,160.0,0.00042926,30]
[400328202,1767378377354,160.0,0.00042926,30]
[400328203,1767378377443,160.0,0.00042926,30]
[400328204,1767378377627,160.0,0.00042926,30]
[400328205,1767378377706,160.0,0.00042926,30]
[400328206,1767378377772,160.0,0.00042926,30]
[400328207,1767378377857,160.0,0.00042926,30]
[400328208,1767378377952,160.0,0.00042926,30]
[400328209,1767378378033,207.0,0.00042926,30]
[400328210,1767378378108,160.0,0.00042926,30]
[400328211,1767378378199,160.0,0.00042926,30]
[400328212,1767378378228,162.73843889,0.00042926,120]
[400328213,1767378378266,160.0,0.00042926,30]
[400328214,1767378378338,160.0,0.00042926,30]
[400328215,1767378378417,160.0,0.00042926,30]
[400328216,1767378378490,160.0,0.00042926,30]
[400328217,1767378378562,160.0,0.00042926,30]
[400328218,1767378378660,160.0,0.00042926,30]
[400328219,1767378378735,160.0,0.00042926,30]
[400328220,1767378378804,160.0,0.00042926,30]
[400328221,1767378378881,160.0,0.00042926,30]
[400328222,1767378378954,207.0,0.00042926,30]
[400328224,1767378392937,-779.19323046,0.000177,2]
[400328225,1767378392970,-151.0,0.00022368,2]
[400328226,1767378395792,-239.76195622,0.0002211,2]
[400328228,1767378402587,-9482.78620645,0.00024197,2]
[400328229,1767378402674,-10000.01,0.00024197,2]
[400328230,1767378402790,-374.1099175,0.00024197,2]
[400328231,1767378402827,-9251.790165,0.00024207,2]
[400328232,1767378403045,-10000.01,0.00024207,2]
[400328233,1767378403119,-10000.01,0.00024207,2]
[400328234,1767378403270,-10000.01,0.00024207,2]
[400328235,1767378403405,-10000.01,0.00024207,2]
[400328236,1767378403852,-4095.0955661,0.00024207,2]
[400328237,1767378405055,151.0,0.00021917,2]
[400328238,1767378408731,440.51399892,0.00042926,120]
[400328239,1767378409751,291.68732455,0.00042926,30]
[400328242,1767378415811,311.13596873,0.00042926,120]
[400328244,1767378420300,405.26481898,0.00042926,30]
[400328245,1767378426513,500.0,0.00016973,2]
[400328246,1767378429750,500.0,0.00016973,2]
[400328247,1767378430071,500.0,0.00016973,2]
[400328248,1767378430305,500.0,0.00016973,2]
[400328249,1767378432650,500.0,0.00016973,2]
[400328250,1767378432908,500.0,0.00016973,2]
[400328251,1767378436326,500.0,0.00016973,2]
[400328252,1767378437202,500.0,0.00016973,2]
[400328253,1767378437299,500.0,0.00016973,2]
[400328254,1767378437424,500.0,0.00016973,2]
[400328255,1767378443218,500.0,0.00016973,2]
[400328256,1767378443375,500.0,0.00016973,2]
[400328257,1767378443909,506.00324855,0.00016973,2]
[400328258,1767378447448,500.0,0.00016973,2]
[400328260,1767378458515,294.03060714,0.0004293,120]
[400328262,1767378461662,221.96233338,0.0004293,30]
[400328263,1767378462216,269.95278273,0.0004293,120]
[400328264,1767378463470,382.10347871,0.0004293,120]
[400328266,1767378467836,264.40164021,0.0004293,120]
[400328267,1767378476598,413.64839325,0.0004293,120]
[400328268,1767378478570,174.71139716,0.0004293,30]
[400328269,1767378478817,-1774.95381733,0.000181,2]
[400328270,1767378478848,-3088.33,0.0002,2]
[400328271,1767378479063,-3950.0,0.0002,2]
[400328272,1767378479096,-1004.67324533,0.000201,2]
[400328273,1767378479256,-151.0,0.00021831,2]
[400328274,1767378479286,-493.42914003,0.000221,2]
[400328275,1767378479317,-2580.6324345,0.000231,2]
[400328276,1767378479348,-1652.0645936,0.00023741,2]
[400328277,1767378479899,-3600.0,0.00024,2]
[400328278,1767378479929,-1232.35438479,0.00024,2]
[400328279,1767378484362,335.30123042,0.00014773,2]
[400328280,1767378484387,164.69876958,0.00014773,2]
[400328281,1767378484416,1000.0,0.00015321,2]
[400328282,1767378484467,500.0,0.00015868,2]
[400328283,1767378485146,172.25813323,0.0004293,120]
[400328285,1767378486222,500.0,0.00016973,2]
[400328286,1767378486250,500.0,0.00016973,2]
[400328287,1767378486995,500.0,0.00016973,2]
[400328288,1767378487352,1291.79844242,0.0002,2]
[400328289,1767378487993,522.05580463,0.0002271,2]
[400328292,1767378500349,267.07882199,0.0004293,120]
[400328293,1767378502743,373.24444675,0.0004293,33]
[400328294,1767378503147,320.79203292,0.0004293,120]
[400328295,1767378503354,219.30780167,0.0004293,120]
[400328296,1767378503534,496.61059473,0.0004293,120]
[400328297,1767378503947,185.96097666,0.0004293,120]
[400328298,1767378504035,283.35334646,0.0004293,30]
[400328299,1767378504469,252.56031948,0.0004293,30]
[400328300,1767378504835,216.23402273,0.0004293,31]
[400328301,1767378505152,176.1592885,0.0004293,120]
[400328302,1767378506906,344.24194697,0.0004293,30]
[400328303,1767378507955,335.22984642,0.0004293,30]
[400328304,1767378507995,351.61842316,0.0004293,30]
[400328306,1767378510602,363.59388187,0.0004293,120]
[400328308,1767378511989,180.47979887,0.0004293,120]
[400328311,1767378516234,242.84314774,0.0004293,30]
[400328312,1767378518112,3131.94164232,0.0004293,30]
[400328313,1767378518656,196.60598703,0.0004293,120]
[400328314,1767378518966,276.45314869,0.0004293,30]
[400328315,1767378520130,274.30827451,0.0004293,120]
[400328317,1767378520927,160.13978604,0.0004293,120]
[400328318,1767378520958,333.09404894,0.0004293,120]
[400328319,1767378521890,255.42367825,0.0004293,120]
[400328322,1767378523730,160.0,0.00017,2]
[400328323,1767378524160,1038.94451701,0.0004293,120]
[400328324,1767378524944,192.789999,0.0004293,120]
[400328325,1767378524998,364.15103951,0.0004293,30]
[400328326,1767378525050,-160.47,0.0001771,2]
[400328327,1767378525082,-3886.74223942,0.000179,2]
[400328328,1767378525113,-718.29230355,0.00018,2]
[400328329,1767378525281,-469.00091406,0.00018,2]
[400328330,1767378525312,-3905.96324841,0.00019,2]
[400328331,1767378525447,-1250.08167506,0.00019,2]
[400328332,1767378525476,-1042.69727334,0.0002,2]
[400328333,1767378525505,-2557.03241628,0.0002,2]
[400328334,1767378525596,-300.38727064,0.0002,2]
[400328335,1767378525629,-1190.59549896,0.00021,2]
[400328336,1767378525660,-196.51768733,0.00021,2]
[400328337,1767378525690,-151.0,0.00021103,2]
[400328338,1767378525718,-221.65844248,0.000215,2]
[400328339,1767378525748,-163.53,0.00022,2]
[400328340,1767378525777,-1969.86488294,0.00023,2]
[400328341,1767378525806,-607.28825269,0.00023,2]
[400328342,1767378525918,-398.32592992,0.00023,2]
[400328343,1767378525948,-157.16740029,0.000232,2]
[400328344,1767378525977,-200.0,0.000235,2]
[400328345,1767378526007,-420.97824936,0.0002421,2]
[400328346,1767378526035,-3687.70928166,0.0002421,2]
[400328347,1767378532156,151.0,0.00020994,2]
[400328348,1767378543768,500.0,0.00014773,2]
[400328349,1767378543798,500.0,0.00016973,2]
[400328350,1767378543827,1000.0,0.00015321,2]
[400328351,1767378543854,500.0,0.00016973,2]
[400328352,1767378543890,500.0,0.00014773,2]
[400328353,1767378543917,417.22865206,0.00015868,2]
[400328354,1767378543948,500.0,0.00015321,2]
[400328357,1767378607747,500.0,0.00016973,2]
[400328358,1767378607989,500.0,0.00016973,2]
[400328359,1767378608104,500.0,0.00016973,2]
[400328365,1767378631949,-151.0,0.00020529,2]
[400328367,1767378631960,-151.0,0.00020618,2]
[400328369,1767378631970,-3072.348999,0.00024527,2]
[400328370,1767378631979,-596.2210091,0.0002465,2]
[400328371,1767378631990,-500.0,0.00024778,3]
[400328372,1767378632000,-150.0,0.00024958,2]
[400328373,1767378632010,-1200.0,0.00024999,2]
[400328374,1767378632020,-300.0,0.00024999,2]
[400328375,1767378632030,-300.0,0.00024999,2]
[400328376,1767378632040,-133.2299919,0.00024999,2]
[400328377,1767378632056,-1066.7700081,0.00024999,2]
[400328378,1767378632066,-1600.0,0.00024999,2]
[400328379,1767378632076,-450.0,0.00025,2]
[400328380,1767378632087,-1109.2215266,0.00025,2]
[400328381,1767378632096,-206.65908382,0.00025,2]
[400328382,1767378632106,-1777.42208836,0.00025,2]
[400328383,1767378632115,-368.1311572,0.00025,2]
[400328384,1767378632129,-360.0,0.00025,2]
[400328385,1767378632139,-608.40867796,0.00025,2]
[400328386,1767378632149,-3031.75609184,0.00025,2]
[400328387,1767378632158,-1060.08606139,0.00025,2]
[400328388,1767378632168,-166.61332554,0.00025,2]
[400328389,1767378632178,-6052.7618024,0.00025355,2]
[400328390,1767378632194,-2895.1177145,0.00025355,2]
[400328391,1767378632206,-4652.19658676,0.00025355,2]
[400328392,1767378632219,-248.91232465,0.00025355,2]
[400328393,1767378632228,-316.50635836,0.00025624,2]
[400328442,1767378638037,-183.78489306,0.0002455,2]
[400328443,1767378638047,-408.68797603,0.00025624,2]
[400328444,1767378638124,-950.80566561,0.00025624,2]
[400328445,1767378638134,-150.0,0.00025739,2]
[400328446,1767378638144,-500.0,0.0002584,2]
[400328447,1767378638154,-4119.72,0.00025882,2]
[400328448,1767378638164,-598.27786792,0.0002599,2]
[400328449,1767378638174,-2451.39646647,0.00026,2]
[400328450,1767378638189,-2052.14986574,0.00026,2]
[400328451,1767378638199,-215.65310949,0.00026,2]
[400328452,1767378638208,-162.32562919,0.00026,2]
[400328453,1767378638218,-551.57962443,0.00026363,2]
[400328454,1767378638238,-317.54276046,0.00026363,2]
[400328455,1767378638248,-165.8,0.00026517,13]
[400328456,1767378638257,-1187.42392521,0.00026517,13]
[400328463,1767378640055,-24.77307479,0.00026517,13]
[400328464,1767378640066,-1075.5627485,0.00026576,2]
[400328465,1767378640075,-3824.73,0.00026648,2]
[400328466,1767378640085,-2944.04729896,0.00026659,2]
[400328467,1767378640232,-94.817772,0.00026659,2]
[400328468,1767378640242,-419.29,0.00026676,2]
[400328469,1767378640251,-150.99,0.00026676,2]
[400328470,1767378640261,-554.45030085,0.00026849,2]
[400328471,1767378640270,-205.52676067,0.000269,2]
[400328472,1767378640279,-2901.8606,0.00026947,2]
[400328473,1767378640289,-3108.20280187,0.00026948,2]
[400328474,1767378640298,-179.52751018,0.00026948,2]
[400328475,1767378640307,-7178.13705646,0.00026986,2]
[400328476,1767378640316,-181.88507025,0.00026988,2]
[400328477,1767378640325,-191.86064812,0.00026988,2]
[400328478,1767378640334,-300.0,0.00026988,2]
[400328479,1767378640344,-343.94128258,0.00026988,2]
[400328480,1767378640353,-500.0,0.00026988,2]
[400328481,1767378640362,-500.0,0.00026988,2]
[400328482,1767378640371,-157.91729844,0.00026988,2]
[400328483,1767378640380,-500.0,0.00026988,2]
[400328484,1767378640390,-500.33392221,0.00026988,2]
[400328485,1767378640399,-500.0,0.00026988,2]
[400328486,1767378640408,-230.22359054,0.00026988,2]
[400328487,1767378640418,-500.0,0.00026988,2]
[400328488,1767378640427,-500.0,0.00026988,2]
[400328489,1767378640436,-500.0,0.00026988,2]
[400328490,1767378640445,-500.0,0.00026988,2]
[400328491,1767378640455,-348.05720439,0.00026988,2]
[400328492,1767378640464,-500.0,0.00026988,2]
[400328493,1767378640473,-500.0,0.00026988,2]
[400328494,1767378640483,-500.0,0.00026988,2]
[400328496,1767378640492,-500.0,0.00026988,2]
[400328498,1767378640501,-500.0,0.00026988,2]
[400328500,1767378640510,-493.4278434,0.00026988,2]
[400328501,1767378640519,-500.0,0.00026988,2]
[400328502,1767378640528,-500.0,0.00026988,2]
[400328503,1767378640537,-500.0,0.00026988,2]
[400328504,1767378640546,-500.0,0.00026988,2]
[400328505,1767378640555,-500.0,0.00026988,2]
[400328506,1767378640564,-500.0,0.00026988,2]
[400328507,1767378640573,-500.0,0.00026988,2]
[400328508,1767378640582,-500.0,0.00026988,2]
[400328509,1767378640591,-500.0,0.00026988,2]
[400328511,1767378640600,-500.0,0.00026988,2]
[400328513,1767378640609,-500.0,0.00026988,2]
[400328514,1767378640618,-500.0,0.00026988,2]
[400328515,1767378640627,-500.0,0.00026988,2]
[400328516,1767378640636,-500.0,0.00026988,2]
[400328517,1767378640646,-500.0,0.00026988,2]
[400328518,1767378640655,-500.0,0.00026988,2]
[400328519,1767378640665,-500.0,0.00026988,2]
[400328520,1767378640674,-500.0,0.00026988,2]
[400328521,1767378640683,-500.0,0.00026988,2]
[400328522,1767378640694,-500.0,0.00026988,2]
[400328523,1767378640704,-500.0,0.00026988,2]
[400328524,1767378640713,-500.0,0.00026988,2]
[400328525,1767378640722,-500.0,0.00026988,2]
[400328526,1767378640731,-500.0,0.00026988,2]
[400328527,1767378640740,-500.0,0.00026988,2]
[400328528,1767378640750,-500.0,0.00026988,2]
[400328529,1767378640759,-500.0,0.00026988,2]
[400328530,1767378640770,-500.0,0.00026988,2]
[400328531,1767378640779,-500.0,0.00026988,2]
[400328532,1767378640788,-500.0,0.00026988,2]
[400328533,1767378640797,-500.0,0.00026988,2]
[400328534,1767378640807,-500.0,0.00026988,2]
[400328535,1767378640816,-500.0,0.00026988,2]
[400328536,1767378640825,-500.0,0.00026988,2]
[400328537,1767378640835,-500.0,0.00026988,2]
[400328538,1767378640844,-500.0,0.00026988,2]
[400328539,1767378640853,-500.0,0.00026988,2]
[400328540,1767378640863,-500.0,0.00026988,2]
[400328541,1767378640872,-500.0,0.00026988,2]
[400328542,1767378640881,-500.0,0.00026988,2]
[400328543,1767378640891,-500.0,0.00026988,2]
[400328544,1767378640900,-500.0,0.00026988,2]
[400328545,1767378640909,-500.0,0.00026988,2]
[400328546,1767378640918,-500.0,0.00026988,2]
[400328547,1767378640927,-500.0,0.00026988,2]
[400328548,1767378640936,-500.0,0.00026988,2]
[400328549,1767378640945,-500.0,0.00026988,2]
[400328550,1767378640956,-108483.03899159,0.00026989,2]
[400328551,1767378640965,-500.0,0.00027,2]
[400328552,1767378640975,-250.0,0.00027,2]
[400328553,1767378640983,-1030.00896281,0.00027,2]
[400328554,1767378640993,-530.0,0.00027,2]
[400328555,1767378641002,-500.0,0.00027,2]
[400328556,1767378641011,-391.49417597,0.00027047,2]
[400328557,1767378641019,-500.0,0.00027047,2]
[400328558,1767378641028,-496.73225043,0.00027047,2]
[400328559,1767378641038,-500.0,0.00027047,2]
[400328560,1767378641047,-331.44406671,0.00027047,2]
[400328561,1767378641056,-357.00610832,0.00027047,2]
[400328562,1767378641065,-500.0,0.00027047,2]
[400328563,1767378641075,-299.99,0.00027048,12]
[400328564,1767378641084,-335.47,0.00027048,2]
[400328565,1767378641093,-9999.99,0.00027048,2]
[400328566,1767378641102,-9621.6,0.00027048,2]
[400328567,1767378641111,-109762.23,0.00027048,10]
[400328568,1767378641120,-9999.99,0.00027048,2]
[400328569,1767378641129,-4999.99,0.00027048,2]
[400328570,1767378641139,-1109.17083251,0.00027057,10]
[400328571,1767378641148,-500.0,0.00027057,2]
[400328572,1767378641157,-500.0,0.00027057,2]
[400328573,1767378641166,-500.0,0.00027057,2]
[400328574,1767378641175,-500.0,0.00027057,2]
[400328575,1767378641185,-500.0,0.00027057,2]